Department family,Entity,Date,Expense Type,Expense area,Supplier,Transaction number,AP Amount (�),Description,VAT registration number
Department of Health,03K,31/12/2015,Clinical&Medical-Independent Sector,CLINICAL ASSESSMENT AND TREATMENT CENTRES,DR P A WEBSTER & PARTNERS,14039,"26,355.36",ANY WILLING PROVIDER SEPTEMBER 2015,
Department of Health,03K,31/12/2015,Clinical&Medical-Independent Sector,CLINICAL ASSESSMENT AND TREATMENT CENTRES,DR P A WEBSTER & PARTNERS,14065,"30,110.18",ANY WILLING PROVIDER OCTOBER 2015,
Department of Health,03K,31/12/2015,Clinical&Medical-Independent Sector,CLINICAL ASSESSMENT AND TREATMENT CENTRES,DR P A WEBSTER & PARTNERS,14092,"35,093.33",ANY WILLING PROVIDER NOVEMBER 2015,
Department of Health,03K,31/12/2015,C&M-GMS Cost of Drugs -Dispensing,LOCAL ENHANCED SERVICES,BRIDGE STREET SURGERY,KHU000016226,"-37,154.32",LOCAL ENHANCED SERVICES,
Department of Health,03K,31/12/2015,C&M-GMS Cost of Drugs -Dispensing,LOCAL ENHANCED SERVICES,BRIDGE STREET SURGERY,KHU000016227,"67,909.55",LOCAL ENHANCED SERVICES,
Department of Health,03K,31/12/2015,C&M-GMS Cost of Drugs -Dispensing,LOCAL ENHANCED SERVICES,DR P A WEBSTER & PARTNERS,KHU000016235,"-61,666.90",LOCAL ENHANCED SERVICES,
Department of Health,03K,31/12/2015,C&M-GMS Cost of Drugs -Dispensing,LOCAL ENHANCED SERVICES,DR P A WEBSTER & PARTNERS,KHU000016236,"155,114.00",LOCAL ENHANCED SERVICES,
Department of Health,03K,31/12/2015,C&M-GMS Cost of Drugs -Dispensing,LOCAL ENHANCED SERVICES,TRENT VIEW MEDICAL PRACTICE,KHU000016243,"-48,003.50",LOCAL ENHANCED SERVICES,
Department of Health,03K,31/12/2015,C&M-GMS Cost of Drugs -Dispensing,LOCAL ENHANCED SERVICES,TRENT VIEW MEDICAL PRACTICE,KHU000016244,"99,546.80",LOCAL ENHANCED SERVICES,
Department of Health,03K,31/12/2015,Services From Local Authorities,REABLEMENT,NORTH LINCOLNSHIRE COUNCIL,A0032448,"172,777.80",BETTER CARE FUND 2015/16 SOCIAL CARE PROVISION NOV 2015 - MAR 2016,
Department of Health,03K,31/12/2015,Hcare Srv Rec Fdtn Trust-CQUIN,MENTAL HEALTH CONTRACTS,ROTHERHAM DONCASTER & SOUTH HUMBER MENTAL HEALTH NHS FOUNDATION TRUST,71292,"32,373.00",MENTAL HEALTH COMMUNITY CONTRACT 15/16 Q2 CQUIN PAYMENT,
Department of Health,03K,31/12/2015,Hcare Srv Rec Fdtn Trust-Contract Baseline,MENTAL HEALTH CONTRACTS,ROTHERHAM DONCASTER & SOUTH HUMBER MENTAL HEALTH NHS FOUNDATION TRUST,71371,"1,089,439.08",MENTAL HEALTH & COMMUNITY BASELINE 50% OF CQUIN DECEMBER 2015,
Department of Health,03K,31/12/2015,Hcare Srv Rec NHS Trust-Contract Baseline,ACUTE COMMISSIONING,UNITED LINCOLNSHIRE HOSPITALS NHS TRUST,174772,"52,405.92",SLA DECEMBER 2015,
Department of Health,03K,31/12/2015,Hcare Srv Rec NHS Trust-Contract Baseline,AMBULANCE SERVICES,EAST MIDLANDS AMBULANCE SERVICE NHS TRUST,11306662,"419,998.60",A&E SLA DECEMBER 2015,
Department of Health,03K,31/12/2015,Hcare Srv Rec NHS Trust-Contract Baseline,PATIENT TRANSPORT,EAST MIDLANDS AMBULANCE SERVICE NHS TRUST,11306675,"99,559.00",PTS CONTRACT DECEMBER 2015,
Department of Health,03K,31/12/2015,Hcare Srv Rec NHS Trust-Contract Baseline,ACUTE COMMISSIONING,HULL AND EAST YORKSHIRE HOSPITALS NHS TRUST,1210020223,"888,131.00",2015/16 BLOCK CONTRACT INVOICE DECEMBER 2015,
Department of Health,03K,31/12/2015,Hcare Srv Rec NHS Trust-Contract Baseline,ACUTE COMMISSIONING,LEEDS TEACHING HOSPITALS NHS TRUST,1410031041,"65,183.45",SLA DECEMBER 2015,
Department of Health,03K,31/12/2015,Hcare Srv Rec NHS Trust-Over/ Under Performance,ACUTE COMMISSIONING,LEEDS TEACHING HOSPITALS NHS TRUST,1490003018,"-43,032.11",CREDIT NOTE - AP06 2015/16 ACTUAL ACTIVITY RECONCILIATION ,
Department of Health,03K,31/12/2015,Hcare Srv Rec Fdtn Trust-Contract Baseline,ACUTE CHILDRENS SERVICES,SHEFFIELD CHILDRENS NHS FOUNDATION TRUST,2100169648,"38,445.00",DECEMBER 2015 SLA CONTRACT ,
Department of Health,03K,31/12/2015,Hcare Srv Rec Fdtn Trust-Non Contract,CLINICAL ASSESSMENT AND TREATMENT CENTRES,NORTHERN LINCOLNSHIRE AND GOOLE HOSPITALS NHS FOUNDATION TRUST,2400010724,"32,412.00",2015/16 MONTH 7 AQP ULTRASOUND,
Department of Health,03K,31/12/2015,Hcare Srv Rec Fdtn Trust-Contract Cost per Case,ACUTE COMMISSIONING,NORTHERN LINCOLNSHIRE AND GOOLE HOSPITALS NHS FOUNDATION TRUST,2400010737,"54,253.00",RECIPROCAL OVERSEAS VISITOR ACTIVITY 2015/16 MONTH 7,
Department of Health,03K,31/12/2015,Hcare Srv Rec Fdtn Trust-Non Contract,ACUTE COMMISSIONING,NORTHERN LINCOLNSHIRE AND GOOLE HOSPITALS NHS FOUNDATION TRUST,2400010747,"2,100,000.00",2015/16 STANDARD CONTRACT TRANSITIONAL SUPPORT,
Department of Health,03K,31/12/2015,Hcare Srv Rec Fdtn Trust-CQUIN,ACUTE COMMISSIONING,NORTHERN LINCOLNSHIRE AND GOOLE HOSPITALS NHS FOUNDATION TRUST,2400010750,"8,459,600.00",2015/16 STANDARD CONTRACT DECEMBER ,
Department of Health,03K,31/12/2015,Hcare Srv Rec Fdtn Trust-Non Contract,ACUTE COMMISSIONING,NORTHERN LINCOLNSHIRE AND GOOLE HOSPITALS NHS FOUNDATION TRUST,2400010804,"1,000,000.00",2015/16 STANDARD CONTRACT BCF RISK PROVISIONS,
Department of Health,03K,31/12/2015,Hcare Srv Rec Fdtn Trust-Non Contract,ACUTE COMMISSIONING,NORTHERN LINCOLNSHIRE AND GOOLE HOSPITALS NHS FOUNDATION TRUST,2500001226,"-2,100,000.00",CREDIT AGAINST INV 2400010747 ,
Department of Health,03K,31/12/2015,Hcare Srv Rec Fdtn Trust-Contract Baseline,ACUTE COMMISSIONING,SHEFFIELD TEACHING HOSPITALS NHS FOUNDATION TRUST,4000442175,"85,797.00",COST & VOLUME CONTRACT 2015/16 DECEMBER 2015,
Department of Health,03K,31/12/2015,Charges from CSU,NCAS/OATS,NHS YORKSHIRE AND HUMBER CS,7312404802,"249,900.00","BASELINE 15/16 MONTH 9, 14/15 SLA LESS 5% ON ADMIN",
Department of Health,03K,31/12/2015,Charges from CSU,PRIMARY CARE IT,NHS YORKSHIRE AND HUMBER CS,7312404838,"34,141.00",GP IT MONTH 9 ,
Department of Health,03K,31/12/2015,Hcare Srv Rec Fdtn Trust-Contract Baseline,ACUTE COMMISSIONING,DONCASTER AND BASSETLAW HOSPITALS NHS FOUNDATION TRUST,82140466,"251,371.00",PBR INPATIENT ELECTIVE CQUINS 50% DECEMBER 2015,
Department of Health,03K,31/12/2015,C&M-GMS Cost of Drugs -Dispensing,LOCAL ENHANCED SERVICES,CENTRAL SURGERY BARTON HUMBER,KHU000016230,"-50,683.52",LOCAL ENHANCED SERVICES,
Department of Health,03K,31/12/2015,C&M-GMS Cost of Drugs -Dispensing,LOCAL ENHANCED SERVICES,CENTRAL SURGERY BARTON HUMBER,KHU000016231,"94,958.05",LOCAL ENHANCED SERVICES,
Department of Health,03K,31/12/2015,C&M-GMS Cost of Drugs -Dispensing,LOCAL ENHANCED SERVICES,RIVERSIDE SURGERY,KHU000016233,"-63,426.80",LOCAL ENHANCED SERVICES,
Department of Health,03K,31/12/2015,C&M-GMS Cost of Drugs -Dispensing,LOCAL ENHANCED SERVICES,RIVERSIDE SURGERY,KHU000016234,"123,667.80",LOCAL ENHANCED SERVICES,
Department of Health,03K,31/12/2015,C&M-GMS Cost of Drugs -Dispensing,LOCAL ENHANCED SERVICES,KIRTON LINDSEY SURGERY,KHU000016237,"-38,323.66",LOCAL ENHANCED SERVICES,
Department of Health,03K,31/12/2015,C&M-GMS Cost of Drugs -Dispensing,LOCAL ENHANCED SERVICES,KIRTON LINDSEY SURGERY,KHU000016238,"69,433.58",LOCAL ENHANCED SERVICES,
Department of Health,03K,31/12/2015,C&M-GMS Cost of Drugs -Dispensing,LOCAL ENHANCED SERVICES,SOUTH AXHOLME PRACTICE,KHU000016241,"-89,080.24",LOCAL ENHANCED SERVICES,
Department of Health,03K,31/12/2015,C&M-GMS Cost of Drugs -Dispensing,LOCAL ENHANCED SERVICES,SOUTH AXHOLME PRACTICE,KHU000016242,"197,136.31",LOCAL ENHANCED SERVICES,
Department of Health,03K,31/12/2015,C&M-GMS Cost of Drugs -Dispensing,LOCAL ENHANCED SERVICES,SK NAEEM,KHU000016251,"30,204.89",LOCAL ENHANCED SERVICES,
Department of Health,03K,31/12/2015,Clinical&Medical-Independent Sector,ACUTE COMMISSIONING,SPIRE HEALTHCARE LTD,03KHULPF201509,"57,458.00",1/12 ESTIMATED ANNUAL CONTRACT VALUE DECEMBER 2015,
Department of Health,03K,31/12/2015,Clinical&Medical-Independent Sector,ACUTE COMMISSIONING,SPIRE HEALTHCARE LTD,03KHULREC201502,"25,128.37",SAC ACTIVITIES MAY 2015/16 SPIRE HULL,
Department of Health,03K,31/12/2015,Services From Local Authorities,LEARNING DIFFICULTIES,NORTH LINCOLNSHIRE COUNCIL,102625-02-DEC-2015,"34,187.00",CONTRIBUTION TO LEARNING DISABILITY POOLED BUDGET DECEMBER 2015,
Department of Health,03K,31/12/2015,Cont Care-Learning Disab(<65),CHC ADULT JOINT FUNDED,NORTH LINCOLNSHIRE COUNCIL,A0032508,"40,885.72",CARE FEES 01/04/2015 - 29/10/2015,
Department of Health,03K,31/12/2015,Clinical&Medical-Independent Sector,MENTAL HEALTH SERVICES - ADULTS,CAMBIAN ANSELL LTD,ANI000248,"25,830.00",CARE FEES 125 29/09/2015 - 30/11/2015,
Department of Health,03K,31/12/2015,Clinical&Medical-Independent Sector,ACUTE COMMISSIONING,ST HUGHS HOSPITAL,DEC2015,"45,833.00",DECEMBER 2015 PROCEDURES,
Department of Health,03K,31/12/2015,C&M-GMS Cost of Drugs -Dispensing,LOCAL ENHANCED SERVICES,BARNETBY MEDICAL CENTRE,KHU000016248,"-43,047.12",LOCAL ENHANCED SERVICES,
Department of Health,03K,31/12/2015,C&M-GMS Cost of Drugs -Dispensing,LOCAL ENHANCED SERVICES,BARNETBY MEDICAL CENTRE,KHU000016249,"79,348.71",LOCAL ENHANCED SERVICES,
Department of Health,03K,31/12/2015,Clinical&Medical-Voluntary Sector,HOSPICES,LINDSEY LODGE HOSPICE,LLH1093,"121,540.26",CCG GRANT INCOME FOR LINDSEY LODGE OCT - DEC 2015,
Department of Health,03K,31/12/2015,Hcare Srv Rec Fdtn Trust-Contract Cost per Case,CLINICAL ASSESSMENT AND TREATMENT CENTRES,VIRGIN CARE EAST RIDING LLP,803Z472,"381,301.77",DERM APPOINTMENTS AUGUST-NOVEMBER 2015,
